fUSD/lending_fUSD_20240719
["ID","MTS","AMOUNT","RATE_DAILY","PERIOD"]
[332637512,1721389843006,-155.77985922,0.00019045,2]
[332637513,1721389843016,-439.21770875,0.00019045,2]
[332637514,1721389843026,-155.17724308,0.00019177,2]
[332637515,1721389843037,-451.7,0.00019178,2]
[332637516,1721389843047,-246.77971328,0.0001924,2]
[332637517,1721389843059,-155.46854314,0.0001924,2]
[332637518,1721389843069,-218.30559898,0.0001924,2]
[332637519,1721389843080,-155.0,0.0001924,2]
[332637520,1721389843089,-155.23105206,0.0001924,2]
[332637521,1721389843099,-241.61284913,0.00019319,2]
[332637522,1721389843108,-242.77519857,0.00019319,2]
[332637523,1721389843117,-200.96228511,0.00019387,2]
[332637524,1721389843126,-155.0,0.00019387,2]
[332637525,1721389843135,-155.0,0.00019398,2]
[332637526,1721389843145,-155.23297036,0.00019451,2]
[332637527,1721389843154,-645.37628817,0.00019451,2]
[332637528,1721389843162,-380.39,0.00019466,2]
[332637529,1721389843171,-1000.0,0.00019508,2]
[332637530,1721389843180,-167.36,0.00019571,2]
[332637531,1721389843189,-227.43774807,0.00019599,2]
[332637532,1721389843198,-520.06850352,0.00019599,2]
[332637533,1721389843207,-321.96333989,0.00019712,2]
[332637534,1721389843217,-167.97,0.00019858,2]
[332637535,1721389843226,-550.80488964,0.000199,2]
[332637536,1721389843235,-364.91913643,0.00019999,2]
[332637537,1721389843245,-479.98,0.00020049,2]
[332637538,1721389843254,-3030.45871516,0.00020399,2]
[332637539,1721389843263,-515.63745664,0.00020831,2]
[332637540,1721389843273,-175.3494189,0.00021,2]
[332637541,1721389843283,-300.0,0.00021,2]
[332637542,1721389843293,-157.07,0.00021644,2]
[332637543,1721389843302,-10000.0,0.00021901,2]
[332637544,1721389843311,-159.95,0.00021918,2]
[332637545,1721389843321,-303.43375346,0.00021918,2]
[332637546,1721389843331,-200.0,0.00021918,2]
[332637547,1721389843341,-187.82,0.00022168,2]
[332637548,1721389843351,-479.98,0.00022312,2]
[332637549,1721389843360,-550.80488964,0.000224,2]
[332637550,1721389843370,-3030.45871516,0.00022599,2]
[332637551,1721389843380,-1036.0,0.000228,2]
[332637552,1721389843391,-350.0,0.00023,2]
[332637553,1721389843400,-1666.18,0.00023014,2]
[332637554,1721389843410,-833.09,0.00023014,2]
[332637555,1721389843420,-833.09,0.00023014,2]
[332637556,1721389843429,-419.88,0.00023014,2]
[332637557,1721389843438,-833.09,0.00023014,2]
[332637558,1721389843447,-419.88,0.00023014,2]
[332637559,1721389843456,-840.44,0.00023014,2]
[332637560,1721389843466,-833.09,0.00023014,2]
[332637561,1721389843475,-833.09,0.00023014,2]
[332637562,1721389843484,-419.88,0.00023014,2]
[332637563,1721389843493,-419.88,0.00023014,2]
[332637564,1721389843503,-833.09,0.00023014,2]
[332637565,1721389843511,-419.88,0.00023014,2]
[332637566,1721389843520,-833.09,0.00023014,2]
[332637567,1721389843530,-833.09,0.00023014,2]
[332637568,1721389843539,-419.88,0.00023014,2]
[332637569,1721389843548,-203.51519856,0.00023194,2]
[332637570,1721389843558,-5216.85075145,0.00023282,3]
[332637571,1721389843567,-400.0,0.00023288,2]
[332637572,1721389843577,-361.0,0.00023294,2]
[332637573,1721389843586,-1829.0,0.00023294,2]
[332637574,1721389843595,-1661.0,0.00023294,2]
[332637575,1721389843604,-1252.0,0.00023294,2]
[332637576,1721389843614,-845.197,0.00023294,2]
[332637577,1721389843623,-445.0,0.00023294,2]
[332637578,1721389843632,-503.946,0.00023294,2]
[332637579,1721389843642,-166.0,0.00023294,2]
[332637580,1721389843652,-620.0,0.00023294,2]
[332637581,1721389843661,-2380.0,0.00023294,2]
[332637582,1721389843670,-262.988,0.00023294,2]
[332637583,1721389843679,-549.0,0.00023294,2]
[332637584,1721389843688,-206.664,0.00023294,2]
[332637585,1721389843698,-1990.0,0.00023294,2]
[332637586,1721389843707,-150.0,0.00023294,2]
[332637587,1721389843716,-3280.0,0.00023294,2]
[332637588,1721389843724,-1201.0,0.00023294,2]
[332637589,1721389843733,-213.0,0.00023294,2]
[332637590,1721389843743,-152.0,0.00023294,2]
[332637591,1721389843752,-5180.0,0.00023294,2]
[332637592,1721389843761,-162.0,0.00023294,2]
[332637593,1721389843770,-163.933,0.00023294,2]
[332637594,1721389843779,-260.862,0.00023294,2]
[332637595,1721389843788,-5815.0,0.00023294,2]
[332637596,1721389843798,-22331.15584677,0.00023294,2]
[332637597,1721389843887,-15937.84415323,0.00023294,2]
[332637598,1721389843896,-197.271,0.00023294,2]
[332637599,1721389843905,-162.255,0.00023294,2]
[332637600,1721389843914,-151.403,0.00023294,2]
[332637601,1721389843924,-150.34,0.00023294,2]
[332637602,1721389843933,-1667.0,0.00023294,2]
[332637603,1721389843942,-247.019,0.00023294,2]
[332637604,1721389843951,-170.948,0.00023294,2]
[332637605,1721389843961,-1072.0,0.00023294,2]
[332637606,1721389843970,-200.0,0.00023331,2]
[332637607,1721389843980,-252.33160325,0.0002335,2]
[332637608,1721389843989,-182.90557106,0.00023383,2]
[332637609,1721389844002,-150.672,0.00023394,2]
[332637610,1721389844011,-419.88,0.00023973,2]
[332637611,1721389844021,-419.88,0.00023973,2]
[332637612,1721389844031,-833.09,0.00023973,2]
[332637613,1721389844042,-419.88,0.00023973,2]
[332637614,1721389844051,-833.09,0.00023973,2]
[332637615,1721389844060,-419.88,0.00023973,2]
[332637616,1721389844070,-833.09,0.00023973,2]
[332637617,1721389844080,-419.88,0.00023973,2]
[332637618,1721389844089,-833.09,0.00023973,2]
[332637619,1721389844099,-833.09,0.00023973,2]
[332637620,1721389844108,-419.88,0.00023973,2]
[332637621,1721389844117,-463.32,0.00023973,2]
[332637622,1721389844127,-832.8,0.00023973,2]
[332637623,1721389844136,-419.88,0.00023973,2]
[332637624,1721389844145,-419.88,0.00023973,2]
[332637625,1721389844154,-419.88,0.00023973,2]
[332637626,1721389844163,-155.0,0.00024,2]
[332637627,1721389844173,-1735.0373,0.00024,2]
[332637628,1721389844182,-304.71289066,0.0002408,2]
[332637629,1721389844191,-150.0,0.00024082,2]
[332637630,1721389844200,-150.0,0.00024082,2]
[332637631,1721389844210,-150.0,0.00024082,2]
[332637632,1721389844219,-251.3355033,0.00024499,2]
[332637633,1721389844228,-321.96333989,0.00024523,2]
[332637634,1721389844238,-479.98,0.00024576,2]
[332637635,1721389844247,-447.54565129,0.00024693,2]
[332637636,1721389844257,-400.0,0.00024701,2]
[332637637,1721389844266,-500.0,0.00024798,2]
[332637638,1721389844277,-200.0,0.00024798,2]
[332637639,1721389844286,-3030.45871516,0.00024799,2]
[332637640,1721389844296,-500.0,0.00024799,2]
[332637641,1721389844519,-500.0,0.00024799,2]
[332637642,1721389844597,-200.0,0.00024799,2]
[332637643,1721389844607,-303.0,0.0002482,9]
[332637644,1721389844617,-1000.0,0.00024874,2]
[332637645,1721389844628,-1000.0,0.00024874,2]
[332637646,1721389844638,-1000.0,0.00024874,2]
[332637647,1721389844648,-1000.0,0.00024874,2]
[332637648,1721389844658,-534.4105297,0.00024874,2]
[332637649,1721389845131,-465.5894703,0.00024874,2]
[332637650,1721389845141,-754.41052971,0.00024874,2]
[332637651,1721389845156,-245.58947029,0.00024874,2]
[332637652,1721389845166,-957.23495772,0.00024874,2]
[332637653,1721389845182,-42.76504228,0.00024874,2]
[332637654,1721389845192,-784.42545511,0.00024874,2]
[332637655,1721389845204,-215.57454489,0.00024874,2]
[332637656,1721389845213,-407.67545511,0.00024874,2]
[332637657,1721389845225,-592.32454489,0.00024874,2]
[332637658,1721389845234,-167.88545511,0.00024874,2]
[332637659,1721389845246,-832.11454489,0.00024874,2]
[332637660,1721389845255,-541.4722,0.00024874,2]
[332637661,1721389845264,-327.01325511,0.000249,2]
[332637662,1721389845276,-223.79163453,0.000249,2]
[332637663,1721389845285,-203.35836347,0.000249,2]
[332637664,1721389845296,-1502.81579274,0.000249,2]
[332637679,1721389845965,-155.0,0.00014789,2]
[332637680,1721389845976,-4182.48814794,0.00018387,2]
[332637696,1721391031805,-19556.42116023,0.00013699,2]
[332637697,1721391031815,-380.45,0.00014355,2]
[332637698,1721391031825,-5016.58835278,0.00014451,2]
[332637699,1721391031837,-5076.9863524,0.00014451,2]
[332637700,1721391031846,-150.0,0.00015,2]
[332637701,1721391031855,-5050.1535,0.00015168,2]
[332637702,1721391031865,-500.0,0.00016033,2]
[332637703,1721391031874,-200.0,0.00016189,2]
[332637704,1721391031883,-417.27,0.00016268,2]
[332637705,1721391031892,-1951.37,0.00016398,2]
[332637706,1721391031902,-598.5,0.00016407,2]
[332637707,1721391031911,-1500.0,0.00016425,2]
[332637708,1721391031922,-958.58717033,0.00016441,2]
[332637709,1721391031931,-966.50991463,0.0001647,2]
[332637710,1721391031941,-798.66,0.0001648,2]
[332637711,1721391031950,-23900.0,0.00016492,2]
[332637712,1721391031960,-287.43,0.00016515,2]
[332637713,1721391031970,-150.99,0.00016604,2]
[332637714,1721391031980,-380.45,0.00016618,2]
[332637715,1721391031989,-514.87,0.00016692,2]
[332637716,1721391031999,-4057.78820611,0.00016699,2]
[332637717,1721391032009,-250.0,0.00016706,2]
[332637718,1721391032019,-888.54089697,0.00016799,2]
[332637719,1721391032028,-590.65994698,0.00016799,2]
[332637720,1721391032038,-7828.67793244,0.00016799,2]
[332637721,1721391032048,-545.62075935,0.00016855,2]
[332637722,1721391032058,-155.10212227,0.00016855,2]
[332637723,1721391032067,-250.0,0.00016872,2]
[332637724,1721391032077,-499.99,0.00016872,2]
[332637725,1721391032089,-274.80125684,0.00016882,2]
[332637726,1721391032100,-155.32667776,0.00016882,2]
[332637727,1721391032109,-263.88862881,0.00016882,2]
[332637728,1721391032119,-369.54465039,0.00016882,2]
[332637729,1721391032129,-492.74605523,0.00016882,2]
[332637731,1721391032139,-385.82,0.0001689,2]
[332637733,1721391032148,-194.3884375,0.00016897,2]
[332637735,1721391032158,-227.43774807,0.00016948,2]
[332637737,1721391032168,-227.43774807,0.00016948,2]
[332637740,1721391032179,-528.03546027,0.00016949,2]
[332637742,1721391032188,-465.43893877,0.00016949,2]
[332637743,1721391032198,-200.0,0.00017,2]
[332637744,1721391032207,-14503.46,0.00017004,2]
[332637745,1721391032216,-220.13226758,0.00017004,2]
[332637746,1721391032226,-2004.57,0.00017007,2]
[332637747,1721391032235,-273.72,0.00017027,2]
[332637748,1721391032245,-150.0,0.00017148,2]
[332637749,1721391032255,-1026.66982016,0.00017332,2]
[332637750,1721391032264,-200.0,0.00017355,2]
[332637751,1721391032274,-280.03,0.00017355,2]
[332637752,1721391032283,-1000.0,0.00017463,2]
[332637753,1721391032294,-1979.0,0.000179,2]
[332637754,1721391032304,-903.096,0.00017976,2]
[332637755,1721391032313,-1615.56,0.00018266,2]
[332637756,1721391032323,-3253.18471345,0.00018287,2]
[332637757,1721391032337,-16209.2861,0.00018287,2]
[332637758,1721391032347,-3250.2608,0.00018287,2]
[332637759,1721391032356,-417.27,0.00018301,2]
[332637760,1721391032366,-24675.27488665,0.00018387,2]
[332637761,1721391032375,-73821.64295082,0.00018387,2]
[332637762,1721391032384,-2227.19362721,0.00018499,2]
[332637763,1721391032393,-15451.9318012,0.00018499,2]
[332637764,1721391032403,-2498.73739198,0.00018499,2]
[332637765,1721391032412,-380.45,0.00018882,2]
[332637766,1721391032422,-2671.36590467,0.000189,2]
[332637767,1721391032436,-2777.56446602,0.00018999,2]
[332637768,1721391032446,-250.0,0.00019,2]
[332637769,1721391032456,-155.26141599,0.00019045,2]
[332637770,1721391032466,-155.0,0.00019177,2]
[332637771,1721391032475,-306.56603608,0.00019179,2]
[332637772,1721391032485,-155.0,0.0001924,2]
[332637773,1721391032494,-265.87657101,0.0001924,2]
[332637774,1721391032504,-259.02,0.00019318,2]
[332637775,1721391032516,-413.67982935,0.00019319,2]
[332637776,1721391032525,-362.73303923,0.00019599,2]
[332637777,1721391032535,-1000.0,0.00019646,2]
[332637778,1721391032544,-437.19993211,0.00019999,2]
[332637779,1721391032554,-3253.18471337,0.00020003,2]
[332637780,1721391032563,-155.99964841,0.00020109,2]
[332637781,1721391032573,-2227.19362719,0.00020189,2]
[332637782,1721391032585,-356.52412219,0.00020191,2]
[332637783,1721391032594,-417.27,0.00020335,2]
[332637784,1721391032604,-238.58420724,0.0002038,2]
[332637785,1721391032613,-300.0,0.0002038,2]
[332637786,1721391032623,-711.205812,0.00020439,2]
[332637787,1721391032632,-356.93123625,0.0002082,5]
[332637788,1721391032643,-1239.25701335,0.00020821,2]
[332637789,1721391032652,-259.63145546,0.00020821,2]
[332637790,1721391032661,-300.0,0.00021,2]
[332637791,1721391032670,-188.44,0.00021059,2]
[332637792,1721391032680,-380.45,0.00021146,2]
[332637793,1721391032689,-335.35,0.00021644,2]
[332637794,1721391032699,-259.02,0.00021733,2]
[332637795,1721391032708,-1000.0,0.00021829,2]
[332637796,1721391032718,-2227.19362719,0.0002188,2]
[332637797,1721391032727,-10000.0,0.00021901,2]
[332637798,1721391032736,-159.95,0.00021918,2]
[332637799,1721391032745,-419.88,0.00022055,2]
[332637800,1721391032755,-2639.89652267,0.00022287,2]
[332637801,1721391032872,-649.25091,0.00022287,2]
[332637802,1721391032883,-1325.8073129,0.00022287,2]
[332637803,1721391032895,-919.32000046,0.00022287,2]
[332637804,1721391032906,-630.85,0.00022287,2]
[332637805,1721391032917,-848.4036702,0.00022287,2]
[332637806,1721391032926,-417.27,0.00022368,2]
[332637807,1721391032936,-155.19430077,0.00023,2]
[332637808,1721391032948,-194.80569923,0.00023,2]
[332637809,1721391032957,-218.063,0.00023394,2]
[332637810,1721391032967,-203.23,0.00023394,2]
[332637811,1721391032977,-380.45,0.0002341,2]
[332637812,1721391032986,-791.27215433,0.00023444,2]
[332637813,1721391032995,-321.61655999,0.0002347,2]
[332637814,1721391033006,-210.27255176,0.0002347,2]
[332637815,1721391033015,-1134.5131362,0.0002357,2]
[332637816,1721391033027,-1092.68049099,0.0002357,2]
[332637817,1721391033037,-273.72,0.00023838,2]
[332637818,1721391033047,-525.2500057,0.00023873,2]
[332637819,1721391033057,-1000.0,0.00024011,2]
[332637820,1721391033067,-150.0,0.0002411,2]
[332637821,1721391033077,-532.58,0.0002411,2]
[332637822,1721391033089,-165.19,0.0002411,2]
[332637823,1721391033099,-150.0,0.0002411,2]
[332637824,1721391033108,-425.19,0.0002411,2]
[332637825,1721391033117,-282.27,0.0002411,2]
[332637826,1721391033127,-355.55,0.0002411,2]
[332637827,1721391033137,-151.29,0.0002411,2]
[332637828,1721391033147,-412.24,0.0002411,2]
[332637829,1721391033156,-154.28,0.0002411,2]
[332637830,1721391033166,-425.19,0.0002411,2]
[332637831,1721391033176,-150.0,0.0002411,2]
[332637832,1721391033185,-150.0,0.0002411,2]
[332637833,1721391033195,-150.0,0.0002411,2]
[332637834,1721391033204,-529.52,0.0002411,2]
[332637835,1721391033215,-150.0,0.0002411,2]
[332637836,1721391033225,-150.0,0.0002411,2]
[332637837,1721391033235,-150.0,0.0002411,2]
[332637838,1721391033245,-355.55,0.0002411,2]
[332637839,1721391033255,-165.19,0.0002411,2]
[332637840,1721391033265,-150.0,0.0002411,2]
[332637841,1721391033275,-150.0,0.0002411,2]
[332637842,1721391033284,-529.52,0.0002411,2]
[332637843,1721391033293,-150.0,0.0002411,2]
[332637844,1721391033303,-150.0,0.0002411,2]
[332637845,1721391033313,-150.0,0.0002411,2]
[332637846,1721391033322,-165.19,0.0002411,2]
[332637847,1721391033332,-355.55,0.0002411,2]
[332637848,1721391033342,-150.0,0.0002411,2]
[332637849,1721391033352,-150.0,0.0002411,2]
[332637850,1721391033361,-150.0,0.0002411,2]
[332637851,1721391033371,-855.7,0.0002411,2]
[332637852,1721391033380,-529.52,0.0002411,2]
[332637853,1721391033390,-150.0,0.0002411,2]
[332637854,1721391033401,-165.19,0.0002411,2]
[332637855,1721391033410,-150.0,0.0002411,2]
[332637856,1721391033420,-150.0,0.0002411,2]
[332637857,1721391033430,-150.0,0.0002411,2]
[332637858,1721391033449,-150.0,0.0002411,2]
[332637859,1721391033466,-355.55,0.0002411,2]
[332637860,1721391033476,-150.0,0.0002411,2]
[332637861,1721391033486,-150.0,0.0002411,2]
[332637862,1721391033495,-150.0,0.0002411,2]
[332637863,1721391033505,-300.0,0.0002411,2]
[332637864,1721391033515,-355.55,0.0002411,2]
[332637865,1721391033525,-681.78,0.0002411,2]
[332637866,1721391033535,-150.0,0.0002411,2]
[332637867,1721391033544,-165.19,0.0002411,2]
[332637868,1721391033554,-150.0,0.0002411,2]
[332637869,1721391033563,-412.68,0.0002411,2]
[332637870,1721391033572,-150.0,0.0002411,2]
[332637871,1721391033582,-165.19,0.0002411,2]
[332637872,1721391033591,-150.0,0.0002411,2]
[332637873,1721391033602,-165.19,0.0002411,2]
[332637874,1721391033612,-150.0,0.0002411,2]
[332637875,1721391033622,-165.19,0.0002411,2]
[332637876,1721391033632,-150.0,0.0002411,2]
[332637877,1721391033642,-165.19,0.0002411,2]
[332637878,1721391033652,-150.0,0.0002411,2]
[332637879,1721391033661,-317.62,0.0002411,2]
[332637880,1721391033671,-259.02,0.00024148,2]
[332637881,1721391033682,-267.84720901,0.00024156,2]
[332637882,1721391033691,-321.96333989,0.00024156,2]
[332637883,1721391033701,-57861.93203442,0.00024247,2]
[332637884,1721391033714,-517.85511205,0.00024247,2]
[332637885,1721391033726,-820.87408869,0.00024247,2]
[332637886,1721391033738,-821.36230201,0.00024247,2]
[332637887,1721391033751,-2012.29595931,0.00024247,2]
[332637888,1721391033763,-2783.40559046,0.00024247,2]
[332637889,1721391033774,-4462.52367967,0.00024247,2]
[332637890,1721391033786,-6728.94505261,0.00024247,2]
[332637891,1721391033868,-68749.80618078,0.00024247,2]
[332637892,1721391033878,-66220.55431769,0.00024256,2]
[332637893,1721391033888,-169.489,0.00024384,2]
[332637894,1721391033897,-361.0,0.00024384,2]
[332637895,1721391033907,-1661.0,0.00024384,2]
[332637896,1721391033917,-1252.0,0.00024384,2]
[332637897,1721391033926,-1829.0,0.00024384,2]
[332637898,1721391033936,-620.0,0.00024384,2]
[332637899,1721391033945,-150.0,0.00024384,2]
[332637900,1721391033956,-445.266,0.00024384,2]
[332637901,1721391033965,-450.0,0.00024384,2]
[332637902,1721391033976,-150.0,0.00024384,2]
[332637903,1721391033986,-549.0,0.00024384,2]
[332637904,1721391033995,-2380.0,0.00024384,2]
[332637905,1721391034005,-150.0,0.00024384,2]
[332637906,1721391034015,-3280.0,0.00024384,2]
[332637907,1721391034024,-903.969,0.00024384,2]
[332637908,1721391034034,-6899.623,0.00024384,2]
[332637909,1721391034043,-1202.123,0.00024384,2]
[332637910,1721391034052,-417.27,0.00024402,2]
[332637911,1721391034064,-600.0,0.00024421,2]
[332637912,1721391034296,-348.01014943,0.00024568,2]
[332637913,1721391034375,-500.0,0.00024798,2]
[332637914,1721391034391,-500.0,0.00024799,2]
[332637915,1721391034402,-200.0,0.00024799,2]
[332637916,1721391034412,-531.88911173,0.00024878,2]
[332637917,1721391034422,-611.2573,0.0002489,2]
[332637918,1721391034435,-7500.0,0.000249,2]
[332637919,1721391034453,-545.0072,0.000249,2]
[332637920,1721391034464,-2048.0742,0.000249,2]
[332637921,1721391034474,-491.61087988,0.000249,2]
[332637922,1721391034486,-1015.60522432,0.000249,2]
[332637923,1721391034496,-3706.50040223,0.000249,2]
[332637924,1721391034506,-220.72,0.00024904,3]
[332637925,1721391034516,-770.0,0.00024986,2]
[332637926,1721391034526,-197.56186878,0.00024989,2]
[332637927,1721391034538,-197.56186878,0.0002499,2]
[332637928,1721391034548,-197.72276897,0.00024997,2]
[332637929,1721391034558,-3657.40911934,0.00024998,2]
[332637930,1721391034568,-500.0,0.00024999,2]
[332637931,1721391034578,-500.0,0.00024999,2]
[332637932,1721391034589,-472.11077101,0.00024999,2]
[332637933,1721391034599,-191.02840007,0.00024999,2]
[332637934,1721391034610,-346.8304964,0.00024999,2]
[332637935,1721391034620,-150.0,0.00024999,2]
[332637936,1721391034630,-446482.40218314,0.00025,5]
[332637937,1721391035338,-4782.84240991,0.00025,5]
[332637938,1721391037803,-2183.16426548,0.00017636,2]
[332637939,1721391037912,-21.37854208,0.00017636,2]
[332637940,1721391037922,-164.06736204,0.00020999,2]
[332637941,1721391037934,-1065.89539652,0.0002172,2]
[332637942,1721391037946,-729.82228752,0.0002172,2]
[332637943,1721391037959,-1457.46702933,0.0002172,2]
[332637944,1721391037969,-3095.45249712,0.00021901,2]
[332637945,1721391037985,-4989.18495523,0.00021901,2]
[332637946,1721391037996,-202559.37654486,0.00025,5]
[332637947,1721391038008,-785.60005,0.00025,5]
[332637948,1721391038021,-914.0500234,0.00025,5]
[332637949,1721391038032,-2166.78342138,0.00025,5]
[332637950,1721391038047,-11911.24209814,0.00025,5]
[332637951,1721391038060,-6628.30439943,0.00025,5]
[332637952,1721391038072,-778.63202683,0.00025,5]
[332637953,1721391038090,-1009.91881608,0.00024384,2]
[332637954,1721391038101,-62.08118392,0.00024384,2]
[332637955,1721391038110,-167081.38495999,0.00025,5]
[332637956,1721391038124,-134963.70502845,0.00025,5]
[332637957,1721391038140,-282.04696975,0.00025,5]
[332637958,1721391038154,-566.76354058,0.00025,5]
[332637959,1721391038167,-53622.47592908,0.00025,5]
[332637960,1721391038178,-361.675,0.00025,5]
[332637961,1721391038200,-3253.18471337,0.00023436,2]
[332637962,1721391038211,-7734.20720704,0.00025,5]
[332637963,1721391038223,-5556.73676619,0.00025,5]
[332637964,1721391038236,-210523.20350283,0.00025,5]
[332637965,1721391038248,-358.33485164,0.00025,5]
[332637966,1721391038261,-4882.1120301,0.00025,5]
[332637974,1721391038358,-5710.16608987,0.00025,5]
[332638045,1721391039968,-2954.1894928,0.00024156,2]
[332638046,1721391039979,-441.48538942,0.00024156,2]
[332638047,1721391040021,-662.70634916,0.00024156,2]
[332638048,1721391040076,-630.25841339,0.00024156,2]
[332638049,1721391040235,-499.30965956,0.00024156,2]
[332638050,1721391040291,-652.44830002,0.00024156,2]
[332638051,1721391040347,-1659.60239565,0.00024156,2]
[332638052,1721391040356,-33015.27267814,0.00025,11]
[332638053,1721391040368,-3383.5,0.00025,11]
[332638054,1721391040401,-54949.59560973,0.00025,11]
[332638055,1721391040414,-48060.18596717,0.00025,11]
[332638056,1721391040426,-1070.81536221,0.00025,11]
[332638066,1721391042976,-647.56,0.00025,11]
[332638067,1721391042988,-7673.41,0.00025,11]
[332638068,1721391042999,-925.50594997,0.00025,11]
[332638069,1721391043031,-346916.96610089,0.00025,11]
[332638070,1721391043041,-68199.72545568,0.00025,5]
[332638071,1721391043087,-2080.68,0.00025,5]
[332638078,1721391043899,-955.62140526,0.00025,5]
[332638079,1721391043911,-2724.565046,0.00025,5]
[332638080,1721391043923,-18007.05712273,0.00025,5]
[332638082,1721391046314,-197.60926482,0.000249,2]
[332638083,1721391046324,-859.59283247,0.00025,5]
[332638084,1721391046340,-8540.98603399,0.00025,5]
[332638085,1721391046353,-27777.27753824,0.00025,5]
[332638089,1721391674363,-227.43774807,0.00015912,2]
[332638090,1721391674389,-227.43774807,0.00015912,2]
[332638093,1721391775605,5688.12450386,0.00015912,2]
[332638126,1721392232053,-289.50439874,0.000125,2]
[332638128,1721392232063,-758.25289816,0.0001251,2]
[332638130,1721392232072,-2134.90414123,0.00013898,2]
[332638133,1721392232113,-1087.34557264,0.00013898,2]
[332638134,1721392232122,-150.0,0.00013989,2]
[332638135,1721392232131,-2141.5604489,0.0001399,2]
[332638136,1721392232145,-3062.23394793,0.0001399,2]
[332638137,1721392232156,-1200.22252239,0.0001399,2]
[332638138,1721392232167,-250.33780553,0.0001399,2]
[332638139,1721392232182,-871.5527439,0.0001399,2]
[332638140,1721392232193,-2507.5411017,0.0001399,2]
[332638141,1721392232204,-1261.02900317,0.0001399,2]
[332638142,1721392232215,-950.90717399,0.0001399,2]
[332638143,1721392232233,-14059.925886,0.0001399,2]
[332638144,1721392232245,-1004.35381733,0.0001399,2]
[332638145,1721392232256,-570.09,0.0001399,2]
[332638146,1721392232268,-5728.92891518,0.0001399,2]
[332638147,1721392232281,-1357.62885533,0.0001399,2]
[332638148,1721392232294,-2167.0181534,0.0001399,2]
[332638149,1721392232305,-17469.0867323,0.0001399,2]
[332638150,1721392232317,-967.08683004,0.0001399,2]
[332638151,1721392232353,-123972.36026991,0.0001399,2]
[332638152,1721392232363,-161.57771743,0.0001399,2]
[332638153,1721392232375,-161.57771743,0.0001399,2]
[332638154,1721392232385,-161.57771743,0.0001399,2]
[332638155,1721392232396,-200.75999792,0.00013999,2]
[332638156,1721392232405,-500.0,0.00013999,2]
[332638157,1721392232414,-500.0,0.00013999,2]
[332638158,1721392232423,-341.29496762,0.00013999,2]
[332638159,1721392232432,-500.0,0.00013999,2]
[332638160,1721392232441,-385.52510786,0.00013999,2]
[332638161,1721392232450,-1078171.64058872,0.00014,2]
[332638162,1721392232463,-1331.32137545,0.00014,2]
[332638163,1721392232486,-33793.21663295,0.00014,2]
[332638164,1721392232499,-2411.95134433,0.00014,2]
[332638165,1721392232512,-898.53028455,0.00014,2]
[332638166,1721392232524,-947.56950504,0.00014,2]
[332638170,1721392238134,-573.2828905,0.00014,2]
[332638171,1721392238148,-822.49017547,0.00014,2]
[332638172,1721392238159,-358.48667185,0.00014,2]
[332638173,1721392238171,-603.45575644,0.00014,2]
[332638174,1721392238184,-910.60655848,0.00014,2]
[332638175,1721392238249,-9881.99222486,0.00014,2]
[332638176,1721392238260,-7768.1384,0.00014,2]
[332638177,1721392238271,-7146.2938,0.00014,2]
[332638178,1721392238282,-18261.65070178,0.00014,2]
[332638179,1721392238294,-1169.55400002,0.00014,2]
[332638180,1721392238367,-399.70833916,0.00014,2]
[332638181,1721392238380,-5710.16608987,0.00014,2]
[332638185,1721392240156,-286.14852919,0.00014,2]
[332638186,1721392240169,-2607.13173966,0.00014,2]
[332638187,1721392240220,-26174.48902768,0.00014,2]